[Event "*** SCC Grand Prix: Titled Tuesday Blitz"]
[Site "Chess.com"]
[Date "2020.10.06"]
[Round "3"]
[White "Bulldog167"]
[Black "Kavyev_Ruslan"]
[Result "0-1"]
[WhiteElo "2780"]
[BlackElo "2587"]
[TimeControl "180+1"]
[EndTime "10:28:22 PDT"]
[Termination "Kavyev_Ruslan won by checkmate"]

1. d4 {[%clk 0:03:00.9]} 1... Nf6 {[%clk 0:02:59.8]} 2. c4 {[%clk 0:03:00.7]}
2... g6 {[%clk 0:03:00.2]} 3. Nc3 {[%clk 0:03:01.2]} 3... d5 {[%clk 0:03:00.9]}
4. Nf3 {[%clk 0:02:59.7]} 4... Bg7 {[%clk 0:03:00.9]} 5. Bg5 {[%clk 0:03:00.2]}
5... Ne4 {[%clk 0:03:00.9]} 6. cxd5 {[%clk 0:03:00.6]} 6... Nxg5 {[%clk
0:03:01.1]} 7. Nxg5 {[%clk 0:03:01.5]} 7... e6 {[%clk 0:03:01.8]} 8. Qd2 {[%clk
0:03:02]} 8... h6 {[%clk 0:03:02]} 9. Nf3 {[%clk 0:03:01.6]} 9... exd5 {[%clk
0:03:02.5]} 10. e3 {[%clk 0:03:02.3]} 10... O-O {[%clk 0:03:02.9]} 11. b4 {[%clk
0:03:02.2]} 11... c6 {[%clk 0:03:03.5]} 12. Be2 {[%clk 0:03:01.9]} 12... Be6
{[%clk 0:03:04.2]} 13. O-O {[%clk 0:03:01.9]} 13... Nd7 {[%clk 0:03:05]} 14.
Rfc1 {[%clk 0:03:00]} 14... b5 {[%clk 0:02:47.6]} 15. a4 {[%clk 0:02:59.7]}
15... a6 {[%clk 0:02:47.8]} 16. a5 {[%clk 0:02:57.9]} 16... Re8 {[%clk
0:02:44.6]} 17. Nd1 {[%clk 0:02:51.5]} 17... Rc8 {[%clk 0:02:43.1]} 18. Nb2
{[%clk 0:02:51.6]} 18... f5 {[%clk 0:02:42.1]} 19. Nd3 {[%clk 0:02:51.2]} 19...
Qe7 {[%clk 0:02:26.2]} 20. Rc3 {[%clk 0:02:34.2]} 20... Nf6 {[%clk 0:02:22.4]}
21. Rc2 {[%clk 0:02:26.5]} 21... Ne4 {[%clk 0:02:22]} 22. Qe1 {[%clk 0:02:27]}
22... Bd7 {[%clk 0:02:19.8]} 23. Nfe5 {[%clk 0:02:25.5]} 23... Qd6 {[%clk
0:02:16.2]} 24. Rac1 {[%clk 0:02:21.5]} 24... g5 {[%clk 0:02:12.6]} 25. Bh5
{[%clk 0:02:15.8]} 25... Rf8 {[%clk 0:02:08]} 26. Bf3 {[%clk 0:01:56.7]} 26...
Kh7 {[%clk 0:01:58]} 27. g3 {[%clk 0:01:35.1]} 27... Be8 {[%clk 0:01:53.8]} 28.
Bg2 {[%clk 0:01:32.2]} 28... Rf6 {[%clk 0:01:47.8]} 29. Kh1 {[%clk 0:01:31.1]}
29... Qf8 {[%clk 0:01:45.7]} 30. f4 {[%clk 0:01:28.5]} 30... g4 {[%clk
0:01:44.7]} 31. Bxe4 {[%clk 0:01:27.7]} 31... fxe4 {[%clk 0:01:44.1]} 32. Nc5
{[%clk 0:01:27.7]} 32... Ra8 {[%clk 0:01:39.6]} 33. Ncd7 {[%clk 0:01:27.5]}
33... Qd6 {[%clk 0:01:18.8]} 34. Nxf6+ {[%clk 0:01:27.3]} 34... Bxf6 {[%clk
0:01:19.4]} 35. Nxc6 {[%clk 0:01:26.2]} 35... Rc8 {[%clk 0:01:17.6]} 36. Ne5
{[%clk 0:01:24.6]} 36... Rxc2 {[%clk 0:01:16.8]} 37. Rxc2 {[%clk 0:01:25.1]}
37... Be7 {[%clk 0:01:17.2]} 38. Rc5 {[%clk 0:01:21.3]} 38... Qd8 {[%clk
0:01:16.1]} 39. Qc3 {[%clk 0:01:21.2]} 39... Bxc5 {[%clk 0:01:15.6]} 40. Qxc5
{[%clk 0:01:20.5]} 40... h5 {[%clk 0:01:10.2]} 41. Kg2 {[%clk 0:01:05.7]} 41...
h4 {[%clk 0:01:10]} 42. Kf2 {[%clk 0:01:06.2]} 42... hxg3+ {[%clk 0:01:07.9]}
43. hxg3 {[%clk 0:01:07.1]} 43... Kg7 {[%clk 0:01:00.8]} 44. Ke2 {[%clk
0:01:06.6]} 44... Bf7 {[%clk 0:00:59.3]} 45. Qa7 {[%clk 0:01:05.5]} 45... Qf6
{[%clk 0:00:59.3]} 46. Kd2 {[%clk 0:00:59.9]} 46... Qe6 {[%clk 0:00:57.1]} 47.
Qb6 {[%clk 0:00:53.4]} 47... Qc8 {[%clk 0:00:54.2]} 48. Qc5 {[%clk 0:00:49.2]}
48... Qe6 {[%clk 0:00:53]} 49. Qc7 {[%clk 0:00:48.7]} 49... Qf5 {[%clk
0:00:48.2]} 50. Qe7 {[%clk 0:00:37.3]} 50... Qe6 {[%clk 0:00:47.9]} 51. Qg5+
{[%clk 0:00:37.3]} 51... Kf8 {[%clk 0:00:46]} 52. f5 {[%clk 0:00:37.1]} 52...
Qd6 {[%clk 0:00:45]} 53. Kc3 {[%clk 0:00:34.6]} 53... Qc7+ {[%clk 0:00:43.9]}
54. Kb3 {[%clk 0:00:30.8]} 54... Qc1 {[%clk 0:00:43.4]} 55. Qd8+ {[%clk
0:00:17.1]} 55... Kg7 {[%clk 0:00:42.3]} 56. Qg5+ {[%clk 0:00:16.8]} 56... Kf8
{[%clk 0:00:42.5]} 57. Qh6+ {[%clk 0:00:16.9]} 57... Kg8 {[%clk 0:00:30.3]} 58.
Qh2 {[%clk 0:00:16.5]} 58... Qxe3+ {[%clk 0:00:28.2]} 59. Ka2 {[%clk 0:00:16.2]}
59... Qxd4 {[%clk 0:00:25.6]} 60. Nxg4 {[%clk 0:00:15.6]} 60... Qc4+ {[%clk
0:00:20.6]} 61. Ka1 {[%clk 0:00:13.6]} 61... Qd4+ {[%clk 0:00:19.3]} 62. Qb2
{[%clk 0:00:11.7]} 62... Qd1+ {[%clk 0:00:19.3]} 63. Ka2 {[%clk 0:00:10.6]}
63... d4+ {[%clk 0:00:18.4]} 64. Ka3 {[%clk 0:00:10.7]} 64... Qa4# {[%clk
0:00:18.7]} 0-1

[Event "*** SCC Grand Prix: Titled Tuesday Blitz"]
[Site "Chess.com"]
[Date "2020.10.06"]
[Round "3"]
[White "SergeyShtyka"]
[Black "djano"]
[Result "1/2-1/2"]
[WhiteElo "2333"]
[BlackElo "2462"]
[TimeControl "180+1"]
[EndTime "10:28:23 PDT"]
[Termination "Game drawn by repetition"]

1. e4 {[%clk 0:02:52.2]} 1... g6 {[%clk 0:02:59.9]} 2. d4 {[%clk 0:02:51.9]}
2... Bg7 {[%clk 0:03:00.1]} 3. Nc3 {[%clk 0:02:52.4]} 3... a6 {[%clk 0:03:00]}
4. Nge2 {[%clk 0:02:52.7]} 4... b5 {[%clk 0:03:00.1]} 5. a3 {[%clk 0:02:52.5]}
5... Bb7 {[%clk 0:03:00.1]} 6. f3 {[%clk 0:02:52.2]} 6... d6 {[%clk 0:02:54.6]}
7. Be3 {[%clk 0:02:52.3]} 7... Nd7 {[%clk 0:02:55]} 8. Qd2 {[%clk 0:02:52.3]}
8... Rc8 {[%clk 0:02:55.3]} 9. h4 {[%clk 0:02:48.7]} 9... h6 {[%clk 0:02:54]}
10. h5 {[%clk 0:02:44.8]} 10... g5 {[%clk 0:02:54.4]} 11. f4 {[%clk 0:02:42.2]}
11... gxf4 {[%clk 0:02:50.9]} 12. Nxf4 {[%clk 0:02:40]} 12... c5 {[%clk
0:02:48.1]} 13. d5 {[%clk 0:02:37.8]} 13... Ngf6 {[%clk 0:02:41.4]} 14. Be2
{[%clk 0:02:35]} 14... b4 {[%clk 0:02:37.7]} 15. Nd1 {[%clk 0:02:17.5]} 15...
Nxe4 {[%clk 0:02:32.7]} 16. Qd3 {[%clk 0:02:17.3]} 16... Ng3 {[%clk 0:02:21.9]}
17. Ne6 {[%clk 0:02:01.8]} 17... Ne5 {[%clk 0:01:54.4]} 18. Nxg7+ {[%clk
0:01:43.8]} 18... Kf8 {[%clk 0:01:53.8]} 19. Qd2 {[%clk 0:01:40.1]} 19... Kxg7
{[%clk 0:01:30.9]} 20. Bxh6+ {[%clk 0:01:27]} 20... Rxh6 {[%clk 0:01:26]} 21.
Qg5+ {[%clk 0:01:26.4]} 21... Kh7 {[%clk 0:01:18.7]} 22. Qxg3 {[%clk 0:01:24.4]}
22... Bxd5 {[%clk 0:01:13.3]} 23. Bxa6 {[%clk 0:01:06.3]} 23... Qg8 {[%clk
0:01:02.3]} 24. Bd3+ {[%clk 0:00:46.2]} 24... Kh8 {[%clk 0:00:48.2]} 25. Qf4
{[%clk 0:00:45.9]} 25... Qg7 {[%clk 0:00:44.4]} 26. Ne3 {[%clk 0:00:45.1]} 26...
Nxd3+ {[%clk 0:00:39.5]} 27. cxd3 {[%clk 0:00:44.4]} 27... Be6 {[%clk
0:00:35.6]} 28. O-O-O {[%clk 0:00:23.5]} 28... bxa3 {[%clk 0:00:33.3]} 29. bxa3
{[%clk 0:00:23.7]} 29... Rb8 {[%clk 0:00:28.3]} 30. Kd2 {[%clk 0:00:22]} 30...
Rf6 {[%clk 0:00:25.5]} 31. Qh4 {[%clk 0:00:17.6]} 31... Rb2+ {[%clk 0:00:22.1]}
32. Ke1 {[%clk 0:00:13.4]} 32... Rff2 {[%clk 0:00:17.4]} 33. Qxf2 {[%clk
0:00:12.4]} 33... Rxf2 {[%clk 0:00:17.3]} 34. Kxf2 {[%clk 0:00:13.3]} 34... Qf6+
{[%clk 0:00:16]} 35. Ke2 {[%clk 0:00:11.9]} 35... Qe5 {[%clk 0:00:14.2]} 36. Kf2
{[%clk 0:00:08.8]} 36... Qf4+ {[%clk 0:00:14.1]} 37. Ke2 {[%clk 0:00:09]} 37...
Bg4+ {[%clk 0:00:13.1]} 38. Nxg4 {[%clk 0:00:09.3]} 38... Qxg4+ {[%clk 0:00:14]}
39. Kf2 {[%clk 0:00:09.7]} 39... Qf4+ {[%clk 0:00:14.2]} 40. Ke2 {[%clk
0:00:10.3]} 40... Qe5+ {[%clk 0:00:13.4]} 41. Kf2 {[%clk 0:00:10.4]} 41... Qd4+
{[%clk 0:00:12.9]} 42. Ke2 {[%clk 0:00:10.6]} 42... Qb2+ {[%clk 0:00:12.7]} 43.
Kf3 {[%clk 0:00:07.6]} 43... Qxa3 {[%clk 0:00:13.6]} 44. h6 {[%clk 0:00:06.5]}
44... c4 {[%clk 0:00:13.4]} 45. h7 {[%clk 0:00:05.5]} 45... Qa8+ {[%clk
0:00:13]} 46. Kf2 {[%clk 0:00:04.6]} 46... c3 {[%clk 0:00:12.9]} 47. Rc1 {[%clk
0:00:04.2]} 47... Qa2+ {[%clk 0:00:12.3]} 48. Ke3 {[%clk 0:00:04.3]} 48... Qd2+
{[%clk 0:00:12.3]} 49. Kd4 {[%clk 0:00:04.6]} 49... e5+ {[%clk 0:00:10.4]} 50.
Kd5 {[%clk 0:00:04.6]} 50... Qxd3+ {[%clk 0:00:10.3]} 51. Kc6 {[%clk 0:00:05.4]}
51... e4 {[%clk 0:00:09.3]} 52. Ra1 {[%clk 0:00:05.2]} 52... Qc4+ {[%clk
0:00:08.2]} 53. Kd7 {[%clk 0:00:04.6]} 53... Qe6+ {[%clk 0:00:08]} 54. Kc7
{[%clk 0:00:04.5]} 54... Qc4+ {[%clk 0:00:06.4]} 55. Kd7 {[%clk 0:00:04.7]}
55... Qe6+ {[%clk 0:00:06.6]} 56. Kc6 {[%clk 0:00:04.9]} 56... Qc4+ {[%clk
0:00:05.3]} 57. Kd7 {[%clk 0:00:05.2]} 1/2-1/2

[Event "*** SCC Grand Prix: Titled Tuesday Blitz"]
[Site "Chess.com"]
[Date "2020.10.06"]
[Round "3"]
[White "KarstenHansch"]
[Black "Grandelicious"]
[Result "1-0"]
[WhiteElo "2479"]
[BlackElo "2784"]
[TimeControl "180+1"]
[EndTime "10:28:28 PDT"]
[Termination "KarstenHansch won by resignation"]

1. e4 {[%clk 0:02:54.2]} 1... c5 {[%clk 0:02:59.1]} 2. Nf3 {[%clk 0:02:53.3]}
2... e6 {[%clk 0:02:59]} 3. c3 {[%clk 0:02:52.9]} 3... Nf6 {[%clk 0:02:58.7]} 4.
e5 {[%clk 0:02:52.8]} 4... Nd5 {[%clk 0:02:59.3]} 5. g3 {[%clk 0:02:53.4]} 5...
d6 {[%clk 0:02:56.7]} 6. exd6 {[%clk 0:02:54.3]} 6... Bxd6 {[%clk 0:02:56.6]} 7.
Bg2 {[%clk 0:02:54]} 7... O-O {[%clk 0:02:57.1]} 8. O-O {[%clk 0:02:54.7]} 8...
Nc6 {[%clk 0:02:44.7]} 9. d4 {[%clk 0:02:55.3]} 9... cxd4 {[%clk 0:02:45]} 10.
Nxd4 {[%clk 0:02:56.2]} 10... Nxd4 {[%clk 0:02:45.6]} 11. Qxd4 {[%clk
0:02:57.1]} 11... Qc7 {[%clk 0:02:46.3]} 12. c4 {[%clk 0:02:36.8]} 12... Nb4
{[%clk 0:02:36.3]} 13. Na3 {[%clk 0:02:34]} 13... Bd7 {[%clk 0:02:30.1]} 14. Rd1
{[%clk 0:02:18.7]} 14... Bc5 {[%clk 0:01:20.5]} 15. Qxd7 {[%clk 0:02:13.3]}
15... Qb6 {[%clk 0:01:21.4]} 16. Rf1 {[%clk 0:01:49.8]} 16... a6 {[%clk
0:01:19.9]} 17. Qxb7 {[%clk 0:01:46]} 17... Qa5 {[%clk 0:01:16.6]} 18. Be3
{[%clk 0:01:23.3]} 18... Bxe3 {[%clk 0:01:12.5]} 19. fxe3 {[%clk 0:01:23.3]}
19... Rab8 {[%clk 0:01:13.4]} 20. Qe4 {[%clk 0:01:19.6]} 20... Qa4 {[%clk
0:01:06.9]} 21. Nb1 {[%clk 0:01:09.9]} 21... Qc2 {[%clk 0:00:55.3]} 22. Nc3
{[%clk 0:01:04.2]} 22... Qxb2 {[%clk 0:00:53.7]} 23. Na4 {[%clk 0:00:54.9]}
23... Qa3 {[%clk 0:00:42.4]} 24. Nc5 {[%clk 0:00:54.6]} 24... Rbd8 {[%clk
0:00:42.1]} 25. Rad1 {[%clk 0:00:41.7]} 25... Rxd1 {[%clk 0:00:40.5]} 26. Rxd1
{[%clk 0:00:42.6]} 26... Qxa2 {[%clk 0:00:41.4]} 27. Nd7 {[%clk 0:00:38.8]}
27... Qa4 {[%clk 0:00:37.5]} 28. Qb1 {[%clk 0:00:27.4]} 28... Re8 {[%clk
0:00:31.9]} 29. Nc5 {[%clk 0:00:27.3]} 29... Qa3 {[%clk 0:00:23.3]} 30. Qb3
{[%clk 0:00:26.1]} 30... Qa5 {[%clk 0:00:23.2]} 31. Nb7 {[%clk 0:00:25.3]} 31...
Qh5 {[%clk 0:00:20.3]} 32. Rd8 {[%clk 0:00:21.4]} 32... Rxd8 {[%clk 0:00:19.1]}
33. Nxd8 {[%clk 0:00:22.3]} 33... a5 {[%clk 0:00:17.3]} 34. Nc6 {[%clk
0:00:22.2]} 34... Qc5 {[%clk 0:00:14.3]} 35. Nxb4 {[%clk 0:00:21]} 35... axb4
{[%clk 0:00:15.2]} 36. Kf2 {[%clk 0:00:21.2]} 36... g6 {[%clk 0:00:15.1]} 37.
Ke2 {[%clk 0:00:21.3]} 37... Qh5+ {[%clk 0:00:15.3]} 38. Kf2 {[%clk 0:00:20.6]}
38... Qf5+ {[%clk 0:00:15.4]} 39. Bf3 {[%clk 0:00:20.2]} 39... Qc5 {[%clk
0:00:15.7]} 40. Qd3 {[%clk 0:00:17.9]} 40... Qb6 {[%clk 0:00:14.3]} 41. Qd4
{[%clk 0:00:16.6]} 41... Qa5 {[%clk 0:00:14.2]} 42. c5 {[%clk 0:00:14.8]} 42...
b3 {[%clk 0:00:14.3]} 43. c6 {[%clk 0:00:15.3]} 43... Qa2+ {[%clk 0:00:13.4]}
44. Be2 {[%clk 0:00:15.2]} 44... Qc2 {[%clk 0:00:13.3]} 45. Qd3 {[%clk
0:00:14.7]} 45... Qxc6 {[%clk 0:00:12.6]} 46. Qxb3 {[%clk 0:00:14.8]} 46... Qh1
{[%clk 0:00:13.2]} 47. Qb8+ {[%clk 0:00:13.6]} 47... Kg7 {[%clk 0:00:12.9]} 48.
Qe5+ {[%clk 0:00:14.5]} 48... Kg8 {[%clk 0:00:12.4]} 49. g4 {[%clk 0:00:14.8]}
49... Qb1 {[%clk 0:00:11.2]} 50. h4 {[%clk 0:00:13.7]} 50... Qh1 {[%clk
0:00:11]} 51. h5 {[%clk 0:00:13.5]} 51... Qh4+ {[%clk 0:00:11]} 52. Kf1 {[%clk
0:00:13.5]} 52... Qh3+ {[%clk 0:00:10.8]} 53. Kf2 {[%clk 0:00:13.6]} 53... Qh4+
{[%clk 0:00:11.3]} 54. Kf1 {[%clk 0:00:14]} 54... Qh3+ {[%clk 0:00:11.4]} 55.
Ke1 {[%clk 0:00:14.3]} 55... Qh1+ {[%clk 0:00:11.2]} 56. Kd2 {[%clk 0:00:14.6]}
56... Qb1 {[%clk 0:00:10.9]} 57. h6 {[%clk 0:00:14.4]} 57... Qb4+ {[%clk
0:00:09.1]} 58. Kd1 {[%clk 0:00:14.1]} 58... Qf8 {[%clk 0:00:05.4]} 59. g5
{[%clk 0:00:13.6]} 59... Qd8+ {[%clk 0:00:05.4]} 60. Ke1 {[%clk 0:00:12.4]}
60... Qa5+ {[%clk 0:00:05.7]} 61. Qxa5 {[%clk 0:00:11.9]} 1-0

[Event "*** SCC Grand Prix: Titled Tuesday Blitz"]
[Site "Chess.com"]
[Date "2020.10.06"]
[Round "3"]
[White "Fy_Rakotomaharo"]
[Black "Gabix_94"]
[Result "0-1"]
[WhiteElo "2622"]
[BlackElo "2810"]
[TimeControl "180+1"]
[EndTime "10:28:38 PDT"]
[Termination "Gabix_94 won by resignation"]

1. e4 {[%clk 0:03:00.9]} 1... g6 {[%clk 0:02:58.1]} 2. d4 {[%clk 0:03:00.9]}
2... Bg7 {[%clk 0:02:58.5]} 3. Nc3 {[%clk 0:03:01.5]} 3... d6 {[%clk 0:02:58.8]}
4. Be3 {[%clk 0:03:00.7]} 4... c6 {[%clk 0:02:58.2]} 5. a4 {[%clk 0:02:57.1]}
5... Nd7 {[%clk 0:02:56.9]} 6. Nf3 {[%clk 0:02:52]} 6... Qc7 {[%clk 0:02:55]} 7.
Bc4 {[%clk 0:02:51]} 7... e6 {[%clk 0:02:49.7]} 8. Qd2 {[%clk 0:02:48.9]} 8...
d5 {[%clk 0:02:47.9]} 9. Bb3 {[%clk 0:02:46.2]} 9... Ngf6 {[%clk 0:02:44.4]} 10.
e5 {[%clk 0:02:26.3]} 10... Ng4 {[%clk 0:02:42.3]} 11. Bf4 {[%clk 0:02:26.7]}
11... h5 {[%clk 0:02:38.9]} 12. O-O-O {[%clk 0:02:18.7]} 12... a6 {[%clk
0:02:22]} 13. h3 {[%clk 0:02:12.2]} 13... Nh6 {[%clk 0:02:21]} 14. g4 {[%clk
0:02:12.9]} 14... b5 {[%clk 0:02:11.3]} 15. gxh5 {[%clk 0:01:57.6]} 15... gxh5
{[%clk 0:02:02.3]} 16. Nh4 {[%clk 0:01:38.5]} 16... b4 {[%clk 0:01:56.3]} 17.
Ne2 {[%clk 0:01:36.8]} 17... c5 {[%clk 0:01:56.8]} 18. Bxd5 {[%clk 0:01:19]}
18... exd5 {[%clk 0:01:51.9]} 19. e6 {[%clk 0:01:19.2]} 19... Qc6 {[%clk
0:01:52.4]} 20. exd7+ {[%clk 0:01:16.8]} 20... Bxd7 {[%clk 0:01:53.3]} 21. Rhg1
{[%clk 0:01:08.9]} 21... Bf6 {[%clk 0:01:42.5]} 22. Bxh6 {[%clk 0:00:40.7]}
22... Bxh4 {[%clk 0:01:36.7]} 23. Bg7 {[%clk 0:00:41.3]} 23... Rg8 {[%clk
0:01:27.7]} 24. dxc5 {[%clk 0:00:41.2]} 24... Qxa4 {[%clk 0:01:21.6]} 25. b3
{[%clk 0:00:34.5]} 25... Qc6 {[%clk 0:01:04.2]} 26. Qxb4 {[%clk 0:00:27.9]}
26... Bxf2 {[%clk 0:00:57.3]} 27. Nd4 {[%clk 0:00:28.2]} 27... Bxd4 {[%clk
0:00:42.3]} 28. Bxd4 {[%clk 0:00:22.9]} 28... O-O-O {[%clk 0:00:42]} 29. Be5
{[%clk 0:00:18.7]} 29... Qb5 {[%clk 0:00:39.6]} 30. Qd4 {[%clk 0:00:11.3]} 30...
Be6 {[%clk 0:00:36.6]} 31. Bf4 {[%clk 0:00:10.7]} 31... Rxg1 {[%clk 0:00:30.9]}
32. Rxg1 {[%clk 0:00:10.3]} 32... Kb7 {[%clk 0:00:30.4]} 33. Kb2 {[%clk
0:00:10.3]} 33... Rc8 {[%clk 0:00:30]} 34. Bd6 {[%clk 0:00:09.5]} 34... a5
{[%clk 0:00:26]} 35. Ra1 {[%clk 0:00:09.1]} 35... Kc6 {[%clk 0:00:20.5]} 36. Qc3
{[%clk 0:00:08.7]} 36... Ra8 {[%clk 0:00:20.2]} 37. Ra4 {[%clk 0:00:09]} 37...
Bxh3 {[%clk 0:00:18.6]} 38. Qxh3 {[%clk 0:00:08.3]} 38... Qe2 {[%clk 0:00:13.9]}
39. Qc3 {[%clk 0:00:07.6]} 39... h4 {[%clk 0:00:12.1]} 40. Rxa5 {[%clk
0:00:06.1]} 40... Re8 {[%clk 0:00:09.1]} 41. Ra7 {[%clk 0:00:03.5]} 41... Rc8
{[%clk 0:00:05.7]} 42. Qa5 {[%clk 0:00:02.7]} 42... d4 {[%clk 0:00:06.2]} 43.
Qb6+ {[%clk 0:00:02.2]} 43... Kd5 {[%clk 0:00:06.8]} 44. Qb7+ {[%clk 0:00:03.1]}
44... Rc6 {[%clk 0:00:07.2]} 45. Ra6 {[%clk 0:00:03.7]} 45... Qxa6 {[%clk
0:00:07.1]} 46. Qxf7+ {[%clk 0:00:04.4]} 46... Ke4 {[%clk 0:00:07.3]} 47. Qe6+
{[%clk 0:00:04.9]} 47... Kf3 {[%clk 0:00:07.8]} 48. Qf5+ {[%clk 0:00:05.2]}
48... Kg2 {[%clk 0:00:07.9]} 49. Qg4+ {[%clk 0:00:05.5]} 49... Kf1 {[%clk
0:00:08.3]} 50. Qxh4 {[%clk 0:00:03.1]} 50... Qe2 {[%clk 0:00:07]} 51. Qh1+
{[%clk 0:00:03.2]} 51... Kf2 {[%clk 0:00:07.5]} 52. Qxc6 {[%clk 0:00:03.7]}
52... d3 {[%clk 0:00:08]} 53. Ka3 {[%clk 0:00:01.7]} 53... Qxc2 {[%clk
0:00:07.9]} 54. Qd5 {[%clk 0:00:01.6]} 54... Qc1+ {[%clk 0:00:08.3]} 55. Kb4
{[%clk 0:00:02.1]} 55... Qe1+ {[%clk 0:00:07.7]} 56. Kb5 {[%clk 0:00:01.3]}
56... d2 {[%clk 0:00:08.3]} 57. Kc6 {[%clk 0:00:02.2]} 57... d1=Q {[%clk
0:00:08.2]} 58. Qf5+ {[%clk 0:00:03.1]} 58... Qf3+ {[%clk 0:00:08]} 59. Qxf3+
{[%clk 0:00:03.5]} 59... Kxf3 {[%clk 0:00:08.9]} 60. b4 {[%clk 0:00:04.4]} 60...
Qxb4 {[%clk 0:00:09.3]} 61. Kd7 {[%clk 0:00:05]} 61... Qb5+ {[%clk 0:00:08.9]}
62. c6 {[%clk 0:00:05.9]} 62... Ke4 {[%clk 0:00:09.6]} 63. Be7 {[%clk
0:00:05.8]} 63... Kd5 {[%clk 0:00:10.1]} 0-1

[Event "*** SCC Grand Prix: Titled Tuesday Blitz"]
[Site "Chess.com"]
[Date "2020.10.06"]
[Round "3"]
[White "Harsha_Bharathakoti"]
[Black "remi04"]
[Result "1-0"]
[WhiteElo "2760"]
[BlackElo "2545"]
[TimeControl "180+1"]
[EndTime "10:28:39 PDT"]
[Termination "Harsha_Bharathakoti won by checkmate"]

1. c4 {[%clk 0:03:00.9]} 1... c5 {[%clk 0:02:58.8]} 2. Nf3 {[%clk 0:02:54.1]}
2... Nc6 {[%clk 0:02:58.9]} 3. d4 {[%clk 0:02:54.4]} 3... cxd4 {[%clk
0:02:58.7]} 4. Nxd4 {[%clk 0:02:55.3]} 4... Nf6 {[%clk 0:02:56]} 5. Nc3 {[%clk
0:02:54.8]} 5... e5 {[%clk 0:02:55]} 6. Ndb5 {[%clk 0:02:50.7]} 6... d6 {[%clk
0:02:54.9]} 7. Bg5 {[%clk 0:02:48.4]} 7... a6 {[%clk 0:02:54.6]} 8. Na3 {[%clk
0:02:43.7]} 8... Be7 {[%clk 0:02:52.1]} 9. e3 {[%clk 0:02:41.6]} 9... Be6 {[%clk
0:02:50.6]} 10. Be2 {[%clk 0:02:39.7]} 10... O-O {[%clk 0:02:50.1]} 11. O-O
{[%clk 0:02:39.8]} 11... Rc8 {[%clk 0:02:49.6]} 12. Rc1 {[%clk 0:02:39.7]} 12...
h6 {[%clk 0:02:47.7]} 13. Bxf6 {[%clk 0:02:39.2]} 13... Bxf6 {[%clk 0:02:47.6]}
14. Bf3 {[%clk 0:02:37.1]} 14... g6 {[%clk 0:02:34.8]} 15. Qe2 {[%clk
0:02:26.1]} 15... Bg7 {[%clk 0:02:30.4]} 16. Rfd1 {[%clk 0:02:24.8]} 16... f5
{[%clk 0:02:13]} 17. Bd5 {[%clk 0:02:22.6]} 17... Bxd5 {[%clk 0:02:12.1]} 18.
Nxd5 {[%clk 0:02:21.5]} 18... Kh7 {[%clk 0:02:06.9]} 19. Nc2 {[%clk 0:02:09.4]}
19... Ne7 {[%clk 0:01:58]} 20. Nxe7 {[%clk 0:02:07.5]} 20... Qxe7 {[%clk
0:01:57.9]} 21. Nb4 {[%clk 0:02:07.5]} 21... Qe6 {[%clk 0:01:56]} 22. b3 {[%clk
0:01:52.7]} 22... f4 {[%clk 0:01:49.5]} 23. exf4 {[%clk 0:01:52.7]} 23... Rxf4
{[%clk 0:01:45.7]} 24. Nd5 {[%clk 0:01:52.8]} 24... Rf7 {[%clk 0:01:43.8]} 25.
Nc3 {[%clk 0:01:42.5]} 25... b5 {[%clk 0:01:26.3]} 26. Ne4 {[%clk 0:01:38.8]}
26... Bf8 {[%clk 0:01:09.2]} 27. cxb5 {[%clk 0:00:48.2]} 27... Rxc1 {[%clk
0:01:08.3]} 28. Rxc1 {[%clk 0:00:49.1]} 28... axb5 {[%clk 0:01:09.2]} 29. Qxb5
{[%clk 0:00:49.2]} 29... d5 {[%clk 0:01:09.5]} 30. Ng3 {[%clk 0:00:42.1]} 30...
e4 {[%clk 0:01:03.2]} 31. Rd1 {[%clk 0:00:41.2]} 31... e3 {[%clk 0:00:53.6]} 32.
f3 {[%clk 0:00:17.9]} 32... Rd7 {[%clk 0:00:50.7]} 33. Ne2 {[%clk 0:00:16.9]}
33... Bg7 {[%clk 0:00:47.2]} 34. Qd3 {[%clk 0:00:13.2]} 34... d4 {[%clk
0:00:43.4]} 35. a4 {[%clk 0:00:13.6]} 35... Rb7 {[%clk 0:00:40.3]} 36. Rb1
{[%clk 0:00:13.8]} 36... Qf5 {[%clk 0:00:27.5]} 37. Qxf5 {[%clk 0:00:10.4]}
37... gxf5 {[%clk 0:00:27]} 38. Nf4 {[%clk 0:00:11.3]} 38... Be5 {[%clk
0:00:13.7]} 39. Nd3 {[%clk 0:00:11.2]} 39... Bd6 {[%clk 0:00:14.1]} 40. Kf1
{[%clk 0:00:11.2]} 40... Rc7 {[%clk 0:00:13.5]} 41. Rc1 {[%clk 0:00:11.5]} 41...
Rb7 {[%clk 0:00:11.6]} 42. b4 {[%clk 0:00:11.9]} 42... Bxb4 {[%clk 0:00:04.5]}
43. Rb1 {[%clk 0:00:12]} 43... e2+ {[%clk 0:00:04.9]} 44. Kxe2 {[%clk
0:00:10.5]} 44... Re7+ {[%clk 0:00:05.4]} 45. Kf2 {[%clk 0:00:11]} 45... Bc3
{[%clk 0:00:06.3]} 46. Rb5 {[%clk 0:00:10.1]} 46... Ra7 {[%clk 0:00:06.3]} 47.
a5 {[%clk 0:00:07.6]} 47... Rxa5 {[%clk 0:00:05.7]} 48. Rb6 {[%clk 0:00:06.5]}
48... Ra2+ {[%clk 0:00:05.3]} 49. Kg3 {[%clk 0:00:07.2]} 49... Rd2 {[%clk
0:00:04.9]} 50. Nf4 {[%clk 0:00:06.6]} 50... d3 {[%clk 0:00:04.2]} 51. Rb7+
{[%clk 0:00:07.1]} 51... Kg8 {[%clk 0:00:03.7]} 52. Kh4 {[%clk 0:00:03.3]} 52...
Bf6+ {[%clk 0:00:03.4]} 53. Kh5 {[%clk 0:00:03.4]} 53... Bg5 {[%clk 0:00:03.9]}
54. Ng6 {[%clk 0:00:02.1]} 54... Rxg2 {[%clk 0:00:03.8]} 55. h4 {[%clk
0:00:02.8]} 55... d2 {[%clk 0:00:04]} 56. Rd7 {[%clk 0:00:03.5]} 56... d1=Q
{[%clk 0:00:03.8]} 57. Rxd1 {[%clk 0:00:03.2]} 57... Bf6 {[%clk 0:00:04.7]} 58.
Rd7 {[%clk 0:00:03.2]} 58... Rh2 {[%clk 0:00:04.6]} 59. Kxh6 {[%clk 0:00:02.9]}
59... Bxh4 {[%clk 0:00:04.4]} 60. Rg7# {[%clk 0:00:03.3]} 1-0